Cogmind - Beta 13 @@@ ROGUE MODE // 2024.05.17 @ 09:52:12 Player: Suspectator Result: Destroyed by G-34 Mercenary with Small Laser Performance ------------- Evolutions (1) 500 Regions Visited (2) 400 Robots Destroyed (25) 125 Value Destroyed (673) 673 Prototype IDs (0) 0 Alien Tech Used (0) 0 Bonus (0) 0 TOTAL SCORE: 1698 Bonus ------- None Cogmind --------- Core Integrity 0/400 Matter 189/300 Energy 95/100 System Corruption 1% Temperature Cool (6) Movement Core (250) Ox4 Location -9/Materials Parts ------- > --- POWER (1) -------- (None) > --- PROPULSION (3) --- (None) > --- UTILITY (3) ------ Medium Storage Unit > --- WEAPON (2) ------- Heavy Hammer > --- INVENTORY (10) --- Ion Engine Light Nuclear Core Field Recycling Unit (0) Mining Claw Peak State ------------ > --- POWER ------------ Improved Ion Engine > --- PROPULSION ------- Aluminum Leg Aluminum Leg Aluminum Leg > --- UTILITY ---------- Medium Storage Unit Medium Matter Pod Medium Armor Plating > --- WEAPON ----------- EM Pulse Gun EMP Blaster > --- INVENTORY -------- Ion Engine Light Ion Engine Light Nuclear Core Aluminum Leg Field Recycling Unit Grenade Launcher Datajack Mining Laser Heavy Hammer Mining Claw [Rating: 13] Favorites ----------- Power Ion Engine Engine Ion Engine Propulsion Aluminum Leg Treads Light Treads Leg Aluminum Leg Wheel Compact Wheel Utility Medium Storage Unit Storage Medium Storage Unit Protection Light Armor Plating Weapon EM Pulse Gun Energy Gun EM Pulse Gun Ballistic Gun Light Assault Rifle Launcher Grenade Launcher Special Weapon Mining Laser Impact Weapon Heavy Hammer Special Melee Weapon Datajack Build | -11 -10 -9 ------- Run | Yrd Mat Mat Slots Evolved 2 | . . 2 Power . | . . . Propulsion 1 | . . 1 Utility 1 | . . 1 Weapon . | . . . Parts Attached 42 | 6 19 17 Power 7 | 1 3 3 Engine 7 | 1 3 3 Core . | . . . Reactor . | . . . Propulsion 14 | 2 8 4 Treads 2 | 2 . . Leg 11 | . 7 4 Wheel 1 | . 1 . Hover . | . . . Flight . | . . . Utility 5 | 1 2 2 Device . | . . . Storage 3 | 1 1 1 Processor . | . . . Hackware . | . . . Protection 2 | . 1 1 Artifact . | . . . Weapon 16 | 2 6 8 Energy Gun 5 | 1 3 1 Energy Cannon . | . . . Ballistic Gun 1 | 1 . . Ballistic Cannon . | . . . Launcher 5 | . 2 3 Special Weapon 2 | . 1 1 Impact Weapon 1 | . . 1 Slashing Weapon . | . . . Piercing Weapon . | . . . Special Melee Weapon 2 | . . 2 Unidentified Prototypes . | . . . Parts Lost 17 | . 4 13 Power 2 | . . 2 Propulsion 6 | . 2 4 Utility 2 | . . 2 Weapon 7 | . 2 5 Highest Loss Streak 11 | . 4 11 To Critical Strikes . | . . . Average Slot Usage (%) 89 | . 89 88 Engine 12 | . 14 10 Treads 5 | . 9 . Leg 22 | . 18 28 Storage 16 | . 14 20 Protection 7 | . 6 9 Energy Gun 17 | . 19 15 Ballistic Gun 3 | . 4 . Launcher 1 | . 1 2 Naked Turns . | . . . Heaviest Build 32 | 13 22 32 Greatest Support 40 | 40 40 30 Greatest Overweight (x) 3 | . 1 3 Average Overweight (x) . | . . . Largest Inventory Capacity 10 | 8 10 10 Average Capacity 9 | 7 9 10 Most Carried 10 | 6 10 10 Average Carried 7 | 3 7 8 Final Capacity 10 | 8 10 10 Final Carried 10 | 6 10 4 Class Distribution -------------------- 100% | Mutant Dominant Class ---------------- Mutant | -10/Materials Mutant | -9/Materials Resources | -11 -10 -9 ----------- Run | Yrd Mat Mat Matter Collected 642 | 206 270 166 Remotely . | . . . Salvage Created 750 | . 415 335 Parts 61 | . 39 22 Haulers Intercepted . | . . . Recyclers Shooed 2 | . 1 1 Parts Field Recycled . | . . . Retrieved Matter . | . . . Parts Self-Destructed . | . . . Prevented . | . . . Kills | -11 -10 -9 ------- Run | Yrd Mat Mat Combat Hostiles Destroyed 17 | . 11 6 Guns 5 | . 3 2 AOE 12 | . 8 4 Classes Destroyed 8 | . 6 2 Builder 3 | . 2 1 Tunneler 1 | . 1 . Recycler 2 | . 1 1 Watcher 2 | . 1 1 Swarmer 3 | . 3 . Grunt 11 | . 8 3 Duelist 1 | . . 1 Sentry 2 | . . 2 Best Kill Streak 6 | . 6 4 Combat Bots Only 4 | . 4 2 Max Kills in Single Turn 3 | . 3 2 Gunslinging . | . . . Exploded 2 | . 2 2 Melee . | . . . Uniques/NPCs Destroyed . | . . . Combat | -11 -10 -9 -------- Run | Yrd Mat Mat Hostile Shots Fired 222 | . 103 119 Missed 53 | . 25 28 Damage Taken 2354 | . 915 1439 Core 565 | . 156 409 Absorbed by Shields . | . . . Regen/Repaired (Parts) 43 | . 43 . Core Remaining (%) 68 | 100 37 . Volleys Fired 67 | . 39 28 Largest 2 | . 2 2 Hottest 100 | . 100 100 Shots Fired 107 | . 69 38 Gun 76 | . 60 16 Cannon . | . . . Launcher 26 | . 7 19 Special 5 | . 2 3 Kinetic 30 | . 30 . Thermal 16 | . 7 9 Explosive 14 | . 7 7 Electromagnetic 47 | . 25 22 Robot Hit Streak 9 | . 9 9 Robot Miss Streak 9 | . 8 9 Penetration Max . | . . . Secondary Targets . | . . . Shots Hit Robots 64 | . 38 26 Core Hits 51 | . 27 24 Critical Kills . | . . . Critical Parts Destroyed . | . . . Critical Strikes 2 | . . 2 Burn 1 | . . 1 Smash 1 | . . 1 Melee Attacks 14 | . . 14 Impact 10 | . . 10 Slashing . | . . . Piercing . | . . . Sneak Attacks 1 | . . 1 Combat Hostiles . | . . . Follow-up Attacks . | . . . Damage Inflicted 2190 | . 1113 1077 Guns 498 | . 404 94 Cannons . | . . . Explosions 1411 | . 709 702 Melee 209 | . . 209 Ramming . | . . . Kinetic 134 | . 134 . Thermal 216 | . 13 203 Explosive 1053 | . 709 344 Electromagnetic 578 | . 257 321 Impact 209 | . . 209 Slashing . | . . . Piercing . | . . . Highest Corruption 1 | . . 1 Average Corruption 1 | . . 1 Corruption Purged . | . . . Corruption Blocked . | . . . Effects 1 | . . 1 Message Errors 1 | . . 1 Overload Shots . | . . . Overflow Damage 30 | . 11 19 Projectiles . | . . . Explosions 30 | . 11 19 Melee . | . . . Knockbacks . | . . . Impact . | . . . Kinetic . | . . . Secondary . | . . . Self-Inflicted Damage 168 | . 19 149 Shots 10 | . 1 9 Rammed . | . . . Targets Rammed . | . . . Kicked . | . . . Crushed . | . . . Highest Temperature 186 | . 186 105 Average Temperature 48 | . 56 34 Received Heat Transfer 954 | . 489 465 Siege Activations . | . . . Robots Corrupted . | . . . Combat Hostiles . | . . . Parts Fried . | . . . Impact Corruptions . | . . . Robots Melted . | . . . Combat Hostiles . | . . . Parts Melted 1 | . . 1 Heat Transferred 596 | . 37 559 Parts Sabotaged . | . . . Parts Stolen . | . . . Parts Stripped . | . . . Power Chain Reactions 6 | . . 6 Alert | -11 -10 -9 ------- Run | Yrd Mat Mat Peak Influence 314 | . 314 276 Initial 80 | . . 80 Average 132 | . 152 126 Maximum Alert Level 1 | . 1 1 Low Security (%) 84 | 100 80 87 Level 1 15 | . 19 12 Level 2 . | . . . Level 3 . | . . . Level 4 . | . . . Level 5 . | . . . High Security . | . . . Max Security . | . . . Squads Dispatched 6 | . 4 2 Investigation 2 | . 1 1 Extermination . | . . . Reinforcement 4 | . 3 1 Assault . | . . . Garrison . | . . . Intercept . | . . . Searches Triggered . | . . . Construction Impeded 1 | . . 1 Haulers Reinforced . | . . . Active Scanning Responses . | . . . Cargo Convoy Interrupts . | . . . Stealth | -11 -10 -9 --------- Run | Yrd Mat Mat Distress Signals 3 | . . 3 Communications Jammed . | . . . Distress Signals . | . . . Times Spotted 31 | . 19 12 Peak Tracking Total 6 | . 5 6 Tactical Retreats . | . . . Traps | -11 -10 -9 ------- Run | Yrd Mat Mat Traps Triggered 1 | . 1 . Indirectly . | . . . Trap Hack Attempts . | . . . Triggered . | . . . Disarmed . | . . . Reprogrammed . | . . . Reused . | . . . Traps Extracted . | . . . Installed . | . . . Triggered . | . . . Machines | -11 -10 -9 ---------- Run | Yrd Mat Mat Machines Disabled 4 | . 2 2 Max in Single Turn 2 | . 1 2 Machines Repaired . | . . . Machines Dismantled . | . . . Machines Sabotaged . | . . . Overloaded Fab Kills . | . . . Hacking | -11 -10 -9 --------- Run | Yrd Mat Mat Machines Accessed 6 | . 3 3 Terminals 4 | . 2 2 Fabricators . | . . . Repair Stations 1 | . 1 . Recycling Units . | . . . Scanalyzers 1 | . . 1 Garrison Access . | . . . Total Hacks 21 | . 11 10 Successful 10 | . 5 5 Failed 11 | . 6 5 Catastrophic 2 | . 2 . Database Lockouts . | . . . Manual 5 | . 3 2 Terminals 11 | . 6 5 Fabricators . | . . . Repair Stations 5 | . 5 . Recycling Units . | . . . Scanalyzers 5 | . . 5 Garrison Access . | . . . Terminal Hacks 2 | . 1 1 Locate Traps 2 | . 1 1 Fabricator Hacks . | . . . Repair Station Hacks 4 | . 4 . Scan Component 2 | . 2 . Repair 2 | . 2 . Recycling Unit Hacks . | . . . Scanalyzer 4 | . . 4 Insert Component 2 | . . 2 Analyze 2 | . . 2 Garrison Access Hacks . | . . . Unauthorized Hacks . | . . . Terminals . | . . . Fabricators . | . . . Repair Stations . | . . . Recycling Units . | . . . Scanalyzers . | . . . Garrison Access . | . . . Data Cores Recovered . | . . . Used . | . . . Hacking Detections 6 | . 3 3 Full Trace Events 3 | . 1 2 Feedback Events 1 | . . 1 Corruption 1 | . . 1 Feedback Blocked . | . . . Robot Schematics Acquired . | . . . Robots Built . | . . . Authchips . | . . . Time . | . . . Total Robot Build Rating . | . . . Part Schematics Acquired 1 | . . 1 Parts Built . | . . . Authchips . | . . . Time . | . . . Total Part Build Rating . | . . . Parts Repaired 2 | . 2 . Time 79 | . 79 . Parts Recycled . | . . . Recycled Matter . | . . . Retrieved Matter . | . . . Retrieved Components . | . . . Parts Scanalyzed 2 | . . 2 Part Schematics Acquired 1 | . . 1 Parts Damaged . | . . . Bothacking | -11 -10 -9 ------------ Run | Yrd Mat Mat Used RIF Installer . | . . . Robots Hacked . | . . . Non-combat . | . . . Combat . | . . . Robot Hacks Applied . | . . . Relay Couplers Released . | . . . Fabnet Peak Effective % . | . . . Robots Rewired . | . . . Allies Hacked . | . . . Hacks Repelled . | . . . Allies | -11 -10 -9 -------- Run | Yrd Mat Mat Total Allies . | . . . Largest Group . | . . . Highest-Rated Group . | . . . Highest-Rated Ally . | . . . Total Orders . | . . . Ally Attacks . | . . . Total Damage . | . . . Kills . | . . . Allies Corrupted . | . . . Allies Melted . | . . . Intel | -11 -10 -9 ------- Run | Yrd Mat Mat Robot Analysis Total . | . . . Derelict Logs Recovered . | . . . Drone Launches . | . . . Drone Recoveries . | . . . Exploration | -11 -10 -9 ------------- Run | Yrd Mat Mat Turns Passed 1348 | 96 791 461 Spaces Moved 690 | 53 379 258 Core 4 | 3 . 1 Treads 154 | 50 104 . Legs 532 | . 275 257 Wheels . | . . . Hover . | . . . Flight . | . . . Fastest Speed 50 | 50 120 120 Average Speed 148 | 153 161 127 Slowest Speed 200 | 160 190 200 Overloaded Moves . | . . . Propulsion Burnouts . | . . . Robots Hopped . | . . . Cave-ins Triggered . | . . . Exploration Rate (%) 36 | 4 80 25 Regions Visited 2 Branch Regions . Pre-discovered Areas . | . . . Known Exits Taken . | . . . Unknown Exits Taken 2 | 1 1 . Scrap Searched . | . . . Spaces Dug 4 | . 4 . Terrain Destroyed 48 | . 21 27 Melee . | . . . Projectile 2 | . 2 . AOE 46 | . 19 27 Terrain Rammed . | . . . Walls Destroyed . | . . . Machines Disabled . | . . . Actions | -11 -10 -9 --------- Run | Yrd Mat Mat Total 881 | 65 488 328 Wait 39 | 1 36 2 Move 688 | 52 378 258 Hop . | . . . Pick Up 17 | 6 8 3 Fast Attach 11 | 6 3 2 Attach 13 | . 4 9 Detach 3 | . 2 1 Swap 18 | . 12 6 Drop 11 | . 6 5 Fire 67 | . 39 28 Melee 14 | . . 14 Ram . | . . . Kick . | . . . Crush . | . . . Escape Stasis . | . . . Rewire . | . . . Trap . | . . . Miscellaneous . | . . . Route ------- -11/Scrapyard -10/Materials (discovered 2 exits: *Mat x2) -9/Materials History --------- Turn | Location | Event 61 | -11/Scrapyard | Discovered new exit (range 15) 97 | -11/Scrapyard | Entered Materials 330 | -10/Materials | Build established: Mutant 370 | -10/Materials | Core integrity fell below 50% 396 | -10/Materials | Lost 4 parts (2n2w) 469 | -10/Materials | Discovered new exit (range 11) 578 | -10/Materials | Repaired Corrupted Lgt. Nuclear Core 604 | -10/Materials | Repaired Grenade Launcher 871 | -10/Materials | Discovered new exit (range 6) 888 | -10/Materials | Entered another Materials area 888 | -9/Materials | Evolved 2 slots: Propulsion x1, Utility x1 1312 | -9/Materials | Core integrity fell below 50% 1342 | -9/Materials | Core integrity fell below 20% 1349 | -9/Materials | Destroyed by G-34 Mercenary with Small Laser Last Messages --------------- The unstable cave ceiling collapses. R-06 Scavenger collects Corrupted Lgt. Ion Engine. Jacked Y-45 Defender... Critical hit (Burn: +37). K-01 Serf collects debris. R-06 Scavenger collects Corrupted Sml. Laser. W-16 Scout sends out distress signal. U-05 Engineer lays Concrete. K-01 Serf collects debris. U-05 Engineer lays Concrete. Datajack destroyed. K-01 Serf collects debris. U-05 Engineer builds a Wall. K-01 Serf collects debris. Aluminum Leg destroyed. K-01 Serf collects debris. Lgt. Ion Engine destroyed. K-01 Serf collects debris. Y-45 Defender suffers critical hit (Smash). Map ----- +----------------------------------------------------+ | ?????????????????????????????????????????????????? | | ?????????????????????????????????????????????????? | | ?????????????????????????????????????????????????? | | ?????????????????????????????????????????????????? | | ?????????????????????????????????????????????????? | | ?????????????????????????????????????????????????? | | ?????????????????????????????????????????????????? | | ?????????????????????????????????????????????????? | | ?????????????????????????????????????????????????? | | ?????????????????????????????????????????????????? | | ?????????????????????????????????????????????????? | | ?????????????????????????????????????????????????? | | ?????????????????????????????????????????????????? | | ?????????????????????????????????????????????????? | | ???????????????????? ????????????????????????????? | | ??????????????????# ?????????????????????######## | | ??????????????????# ????????????????????# # | | ??????????????????# ????????????????????# """ # | | ?????????????##???# ????????????????????#" """ # | | ????????????? ?## #???????????????????#T """ # | | ?????????????? # ###########????????#" # | | ??????????????? # # [ #????????# ]# | | ???????????????? + T # ############+#### | | ??????????????? # = # + ^ + | | ?????????????????# %#Y ######### # | | ???????????????????# #g@ Y ## # """ # | | ???????????????????# ## """ + """ # | | ??????????????###### k# ## """ # """ # | | ??????????????# ## """ # # | | ??????????????#"S # /####### """ # # | | ??????????????#""" % #??# ! # ####### | | ??????????????# "" # #######+### ####### | | ??????????????# # # | | ??????????????# """ + # " | | ??????????????# """ # "" # " | | ??????????????# """ # Y" # " | | ??????????????# # """ "" # | | ??????????????# """ # """ # " | | ??????????????# """ # """ # " | | ??????????????# "" # k ]][ """ # " | | ??????????????# # ]][ """ + | | ??????????????#? # ][[ # " | | ???????????????##### ### # " | | ???????????????????###?# # =" | | ??????????????????????? ########### ## | | ?????????????????????? #?????????# ## " | | ?????????????????????? #??######## ## " | | ???????????????????????####+##??# # ## " | | ????????????????????????????????# """ # ## | | ????????????????????????????????# """ # ##### | +----------------------------------------------------+ Best States ------------- Heat Dissipation 28 Energy Generation 12 Energy Capacity 265 Matter Stores 301 Matter Capacity 400 Sight Range 16 Terrain Scan Density 10 Armor Coverage 225 Evasion (%) 55 Recoil Reduction 2 Item Schematics ----------------- Hvy. Hammer | -9/Materials | Scanalyzed Robot Schematics ------------------ None Fabricated ------------ Nothing Alien Tech Used ----------------- None Achievements -------------- None Challenges ------------ None Game ------ Seed PowerNodeCloak Manual? 0 Play Time 00:21:53 Cumulative 5.7 hours Start 2024.05.17 @ 09:32:56 End 2024.05.17 @ 09:52:12 Sessions 1 Manual Loads 0 Difficulty Rogue Special Mode None Game No. 10 Rogue 10 Adventurer 0 Explorer 0 Win Type - Total 0 Types 0/0/0/0/0/0/0/0/0 Lore% 4 Gallery% 10 Achievement% 10 Wizard Run 0 Options --------- Layout 1 ASCII 0 Keyboard 1 Movement Numpad Keybinds 0 Fullscreen 1 Font 20/SmallcapsGlow Map View 50x35 Zoom Use 0% Tactical HUD 0 Map Filters NONE Filters NONE Steam 0 RUN: 9e611c0f-e62f-4ab4-b420-bb337195d05e